[Event "Late-Titled-Tuesday-Blitz-January-16-2024"]
[Site "Chess.com"]
[Date "2024.01.16"]
[Round "1"]
[White "KnobbedHornbill"]
[Black "jcibarra"]
[Result "0-1"]
[WhiteElo "2478"]
[BlackElo "2890"]
[TimeControl "180+1"]
[EndTime "14:01:24 PST"]
[Termination "jcibarra won by resignation"]

1. d4 {[%clk 0:03:00.9]} 1... Nf6 {[%clk 0:02:59.5]} 2. c4 {[%clk 0:03:01.6]}
2... d6 {[%clk 0:02:59.9]} 3. g3 {[%clk 0:03:02.1]} 3... e5 {[%clk 0:03:00]} 4.
Nf3 {[%clk 0:03:00.9]} 4... e4 {[%clk 0:03:00.2]} 5. Nfd2 {[%clk 0:03:00]} 5...
c6 {[%clk 0:02:58.8]} 6. d5 {[%clk 0:02:58.1]} 6... cxd5 {[%clk 0:02:55.1]} 7.
cxd5 {[%clk 0:02:57.6]} 7... e3 {[%clk 0:02:55.8]} 8. fxe3 {[%clk 0:02:57.5]}
8... Nxd5 {[%clk 0:02:55.6]} 9. Nc4 {[%clk 0:02:56.2]} 9... Nf6 {[%clk
0:02:54.3]} 10. Bg2 {[%clk 0:02:56.5]} 10... d5 {[%clk 0:02:53.9]} 11. Ne5
{[%clk 0:02:52.6]} 11... Bc5 {[%clk 0:02:47.8]} 12. O-O {[%clk 0:02:45.8]} 12...
O-O {[%clk 0:02:46.5]} 13. Qc2 {[%clk 0:02:46]} 13... Qe7 {[%clk 0:02:44.6]} 14.
Nc3 {[%clk 0:02:45.5]} 14... Qxe5 {[%clk 0:02:34.5]} 0-1

[Event "Late-Titled-Tuesday-Blitz-January-16-2024"]
[Site "Chess.com"]
[Date "2024.01.16"]
[Round "1"]
[White "Lion-Al-Messi"]
[Black "EcosseKillie"]
[Result "1-0"]
[WhiteElo "2612"]
[BlackElo "2259"]
[TimeControl "180+1"]
[EndTime "14:02:55 PST"]
[Termination "Lion-Al-Messi won by resignation"]

1. e4 {[%clk 0:03:00.9]} 1... Nf6 {[%clk 0:02:59.5]} 2. e5 {[%clk 0:03:00.8]}
2... Nd5 {[%clk 0:02:59.4]} 3. d4 {[%clk 0:03:01.1]} 3... d6 {[%clk 0:02:59.3]}
4. Nf3 {[%clk 0:03:01.2]} 4... dxe5 {[%clk 0:02:58]} 5. Nxe5 {[%clk 0:03:01.4]}
5... g6 {[%clk 0:02:58.1]} 6. c4 {[%clk 0:03:01.4]} 6... Nb6 {[%clk 0:02:57.4]}
7. Nc3 {[%clk 0:03:01.6]} 7... Bg7 {[%clk 0:02:57.6]} 8. Bf4 {[%clk 0:03:00.6]}
8... O-O {[%clk 0:02:57.2]} 9. Be2 {[%clk 0:02:59.8]} 9... N8d7 {[%clk
0:02:56.3]} 10. Nf3 {[%clk 0:02:57.1]} 10... c5 {[%clk 0:02:49.9]} 11. d5 {[%clk
0:02:54.8]} 11... Nf6 {[%clk 0:02:47.2]} 12. O-O {[%clk 0:02:54]} 12... Bg4
{[%clk 0:02:46.7]} 13. Ne5 {[%clk 0:02:52]} 13... Bxe2 {[%clk 0:02:42.7]} 14.
Qxe2 {[%clk 0:02:52.9]} 14... Nbd7 {[%clk 0:02:42.3]} 15. Rfe1 {[%clk
0:02:50.3]} 15... Nxe5 {[%clk 0:02:42.4]} 16. Bxe5 {[%clk 0:02:51.2]} 16... Qd7
{[%clk 0:02:36.4]} 17. Rad1 {[%clk 0:02:50.7]} 17... Rfe8 {[%clk 0:02:35]} 18.
h3 {[%clk 0:02:44.5]} 18... b6 {[%clk 0:02:35]} 19. Nb5 {[%clk 0:02:42.7]} 19...
a6 {[%clk 0:02:34.9]} 20. Nc7 {[%clk 0:02:42.7]} 20... Rac8 {[%clk 0:02:32.7]}
21. Nxe8 {[%clk 0:02:42.9]} 21... Rxe8 {[%clk 0:02:33.3]} 22. b3 {[%clk
0:02:40.6]} 22... b5 {[%clk 0:02:32.3]} 23. Qf3 {[%clk 0:02:30.9]} 23... b4
{[%clk 0:02:03.9]} 24. d6 {[%clk 0:02:29.4]} 1-0

[Event "Late-Titled-Tuesday-Blitz-January-16-2024"]
[Site "Chess.com"]
[Date "2024.01.16"]
[Round "1"]
[White "Statham_01"]
[Black "KSho99"]
[Result "0-1"]
[WhiteElo "2544"]
[BlackElo "2169"]
[TimeControl "180+1"]
[EndTime "14:02:56 PST"]
[Termination "KSho99 won by checkmate"]

1. e4 {[%clk 0:02:59.6]} 1... c6 {[%clk 0:02:58.4]} 2. d4 {[%clk 0:02:59.2]}
2... d5 {[%clk 0:02:58.6]} 3. f3 {[%clk 0:02:59.8]} 3... dxe4 {[%clk 0:02:57.2]}
4. fxe4 {[%clk 0:03:00.7]} 4... e5 {[%clk 0:02:57.4]} 5. Nf3 {[%clk 0:03:01.6]}
5... Bg4 {[%clk 0:02:56.7]} 6. Bc4 {[%clk 0:03:01.6]} 6... Nd7 {[%clk
0:02:56.5]} 7. c3 {[%clk 0:03:01.9]} 7... Ngf6 {[%clk 0:02:53.1]} 8. Qb3 {[%clk
0:03:01.7]} 8... Bh5 {[%clk 0:02:36.3]} 9. Qxb7 {[%clk 0:03:00.6]} 9... Be7
{[%clk 0:02:16.5]} 10. Nxe5 {[%clk 0:02:39.1]} 10... Nxe5 {[%clk 0:02:00.5]} 11.
dxe5 {[%clk 0:02:40]} 11... Qd1+ {[%clk 0:01:54.2]} 12. Kf2 {[%clk 0:02:38.9]}
12... Nxe4+ {[%clk 0:01:08.7]} 13. Ke3 {[%clk 0:02:38.6]} 13... Bg5+ {[%clk
0:01:07.5]} 14. Kxe4 {[%clk 0:02:39]} 14... Bg6# {[%clk 0:01:07.6]} 0-1

[Event "Late-Titled-Tuesday-Blitz-January-16-2024"]
[Site "Chess.com"]
[Date "2024.01.16"]
[Round "1"]
[White "AkatsukiLogHorizon"]
[Black "Yurovskykh_Oleksandr"]
[Result "1-0"]
[WhiteElo "2284"]
[BlackElo "2602"]
[TimeControl "180+1"]
[EndTime "14:02:58 PST"]
[Termination "AkatsukiLogHorizon won by resignation"]

1. e4 {[%clk 0:03:00.9]} 1... e6 {[%clk 0:02:59]} 2. d4 {[%clk 0:02:58.7]} 2...
d5 {[%clk 0:02:59.9]} 3. Nc3 {[%clk 0:02:57.2]} 3... dxe4 {[%clk 0:02:55]} 4.
Nxe4 {[%clk 0:02:56.5]} 4... Bd7 {[%clk 0:02:55.2]} 5. Bg5 {[%clk 0:02:51.4]}
5... Be7 {[%clk 0:02:54.5]} 6. Bxe7 {[%clk 0:02:45.8]} 6... Qxe7 {[%clk
0:02:55.4]} 7. c3 {[%clk 0:02:43.3]} 7... Bc6 {[%clk 0:02:54]} 8. Ng3 {[%clk
0:02:32.9]} 8... Nf6 {[%clk 0:02:49.9]} 9. Nf3 {[%clk 0:02:32.5]} 9... Nbd7
{[%clk 0:02:48.9]} 10. Bd3 {[%clk 0:02:29.2]} 10... O-O {[%clk 0:02:44.6]} 11.
O-O {[%clk 0:02:28.5]} 11... Bd5 {[%clk 0:02:44.3]} 12. Nd2 {[%clk 0:02:23.5]}
12... c5 {[%clk 0:02:41.6]} 13. c4 {[%clk 0:02:20.9]} 13... Bc6 {[%clk
0:02:40.7]} 14. dxc5 {[%clk 0:02:18.8]} 14... Nxc5 {[%clk 0:02:41.6]} 15. Bc2
{[%clk 0:02:18.7]} 15... Rfd8 {[%clk 0:02:40.5]} 16. Qe2 {[%clk 0:02:18.2]}
16... b6 {[%clk 0:02:31.9]} 17. b3 {[%clk 0:02:17.5]} 17... a5 {[%clk
0:02:26.5]} 18. Nde4 {[%clk 0:02:13.1]} 18... Nfxe4 {[%clk 0:02:18.5]} 19. Nxe4
{[%clk 0:02:12.4]} 1-0

[Event "Late-Titled-Tuesday-Blitz-January-16-2024"]
[Site "Chess.com"]
[Date "2024.01.16"]
[Round "1"]
[White "Aguiar94"]
[Black "maurovargas01"]
[Result "1-0"]
[WhiteElo "2531"]
[BlackElo "1851"]
[TimeControl "180+1"]
[EndTime "14:03:20 PST"]
[Termination "Aguiar94 won by resignation"]

1. e4 {[%clk 0:02:58.4]} 1... c5 {[%clk 0:03:00.2]} 2. Nf3 {[%clk 0:02:57.9]}
2... d6 {[%clk 0:02:59.7]} 3. d4 {[%clk 0:02:58.1]} 3... cxd4 {[%clk 0:02:59.5]}
4. Qxd4 {[%clk 0:02:59]} 4... Nc6 {[%clk 0:02:58.4]} 5. Bb5 {[%clk 0:02:58.9]}
5... Bd7 {[%clk 0:02:57]} 6. Bxc6 {[%clk 0:02:59.2]} 6... Bxc6 {[%clk
0:02:56.9]} 7. Bg5 {[%clk 0:02:58.6]} 7... Nf6 {[%clk 0:02:55.8]} 8. Nc3 {[%clk
0:02:58]} 8... h6 {[%clk 0:02:53.3]} 9. Bxf6 {[%clk 0:02:57.5]} 9... gxf6 {[%clk
0:02:53.3]} 10. O-O-O {[%clk 0:02:58.1]} 10... Rg8 {[%clk 0:02:50.8]} 11. g3
{[%clk 0:02:56.2]} 11... Qd7 {[%clk 0:02:41.2]} 12. Rhe1 {[%clk 0:02:52]} 12...
O-O-O {[%clk 0:02:39.7]} 13. Qxa7 {[%clk 0:02:50.2]} 13... Qc7 {[%clk
0:02:39.1]} 14. Nd4 {[%clk 0:02:48.2]} 14... Bg7 {[%clk 0:02:33.8]} 15. Ndb5
{[%clk 0:02:38.3]} 15... Qb8 {[%clk 0:02:24.4]} 16. Qb6 {[%clk 0:02:32.6]} 16...
h5 {[%clk 0:02:08]} 17. Kb1 {[%clk 0:02:31]} 17... Bh6 {[%clk 0:01:48]} 18. Nd5
{[%clk 0:02:22.7]} 18... Rd7 {[%clk 0:01:30]} 19. Na7+ {[%clk 0:02:16.4]} 1-0

[Event "Late-Titled-Tuesday-Blitz-January-16-2024"]
[Site "Chess.com"]
[Date "2024.01.16"]
[Round "1"]
[White "annasargsyan_m"]
[Black "glebus008"]
[Result "0-1"]
[WhiteElo "2601"]
[BlackElo "2293"]
[TimeControl "180+1"]
[EndTime "14:03:57 PST"]
[Termination "glebus008 won by resignation"]

1. d4 {[%clk 0:03:00.9]} 1... d5 {[%clk 0:02:52.5]} 2. Nf3 {[%clk 0:02:57.6]}
2... Nf6 {[%clk 0:02:51.9]} 3. c4 {[%clk 0:02:29.5]} 3... e6 {[%clk 0:02:51.1]}
4. Nc3 {[%clk 0:02:29.1]} 4... Be7 {[%clk 0:02:50.8]} 5. Bf4 {[%clk 0:02:27.5]}
5... c5 {[%clk 0:02:44.8]} 6. cxd5 {[%clk 0:02:25.7]} 6... Nxd5 {[%clk
0:02:45.7]} 7. e4 {[%clk 0:02:24]} 7... Nxf4 {[%clk 0:02:44.5]} 8. Bb5+ {[%clk
0:02:12.9]} 8... Bd7 {[%clk 0:02:42]} 9. Bc4 {[%clk 0:02:13.6]} 9... Nxg2+
{[%clk 0:02:40.2]} 10. Kf1 {[%clk 0:02:12.8]} 10... Nf4 {[%clk 0:02:39.2]} 11.
Qd2 {[%clk 0:02:13.1]} 11... Ng6 {[%clk 0:02:23.7]} 12. h4 {[%clk 0:02:10.2]}
12... cxd4 {[%clk 0:02:10.9]} 13. Qxd4 {[%clk 0:02:08.1]} 13... Bf6 {[%clk
0:01:59.7]} 14. Qe3 {[%clk 0:02:07.3]} 14... Nxh4 {[%clk 0:01:48]} 15. e5 {[%clk
0:02:03.1]} 15... Nxf3 {[%clk 0:01:33.1]} 16. exf6 {[%clk 0:02:02.7]} 16... Qxf6
{[%clk 0:01:27.8]} 17. Ne4 {[%clk 0:02:02.7]} 17... Qd4 {[%clk 0:01:16.2]} 18.
Qxf3 {[%clk 0:01:58]} 18... Qxc4+ {[%clk 0:01:14]} 19. Kg2 {[%clk 0:01:58.7]}
19... Qxe4 {[%clk 0:01:06.1]} 0-1

[Event "Late-Titled-Tuesday-Blitz-January-16-2024"]
[Site "Chess.com"]
[Date "2024.01.16"]
[Round "1"]
[White "IgorBjelobrk"]
[Black "Zampronha1971"]
[Result "1-0"]
[WhiteElo "2644"]
[BlackElo "2335"]
[TimeControl "180+1"]
[EndTime "14:04:00 PST"]
[Termination "IgorBjelobrk won by resignation"]

1. d4 {[%clk 0:03:00.9]} 1... Nf6 {[%clk 0:02:59.5]} 2. c4 {[%clk 0:02:58.7]}
2... e6 {[%clk 0:02:59.9]} 3. g3 {[%clk 0:02:57.3]} 3... c5 {[%clk 0:02:57.3]}
4. d5 {[%clk 0:02:56.9]} 4... exd5 {[%clk 0:02:57.3]} 5. cxd5 {[%clk 0:02:57.8]}
5... d6 {[%clk 0:02:57.9]} 6. Nc3 {[%clk 0:02:57.7]} 6... g6 {[%clk 0:02:58.3]}
7. Nf3 {[%clk 0:02:57.9]} 7... Bg7 {[%clk 0:02:58.8]} 8. Bg2 {[%clk 0:02:58.5]}
8... O-O {[%clk 0:02:59.3]} 9. O-O {[%clk 0:02:59.2]} 9... Re8 {[%clk
0:02:59.8]} 10. Re1 {[%clk 0:02:59.4]} 10... a6 {[%clk 0:02:54.4]} 11. a4 {[%clk
0:02:58.7]} 11... Bf5 {[%clk 0:02:53.2]} 12. Nd2 {[%clk 0:02:57.4]} 12... Qd7
{[%clk 0:02:43.9]} 13. Nc4 {[%clk 0:02:53.4]} 13... Qc7 {[%clk 0:02:37.7]} 14.
Bf4 {[%clk 0:02:52.3]} 14... Rd8 {[%clk 0:02:34.4]} 15. e4 {[%clk 0:02:50.6]}
15... Bg4 {[%clk 0:02:34]} 16. f3 {[%clk 0:02:50.1]} 16... Bc8 {[%clk
0:02:33.1]} 17. a5 {[%clk 0:02:44.7]} 17... Nh5 {[%clk 0:02:31.7]} 18. Bg5
{[%clk 0:02:42.1]} 18... Bf6 {[%clk 0:02:28.2]} 19. Bxf6 {[%clk 0:02:29.2]}
19... Nxf6 {[%clk 0:02:28]} 20. f4 {[%clk 0:02:28.1]} 20... Nbd7 {[%clk
0:02:23.7]} 21. e5 {[%clk 0:02:26.3]} 21... Ne8 {[%clk 0:02:21.6]} 22. e6 {[%clk
0:02:24.7]} 22... Ndf6 {[%clk 0:02:21]} 23. Nb6 {[%clk 0:02:12.9]} 23... Rb8
{[%clk 0:02:20.4]} 24. e7 {[%clk 0:02:13.2]} 24... Rd7 {[%clk 0:02:18.7]} 25.
Nxd7 {[%clk 0:02:13.4]} 25... Bxd7 {[%clk 0:02:14.2]} 26. Ne4 {[%clk 0:01:53.4]}
26... Nxe4 {[%clk 0:02:09]} 27. Bxe4 {[%clk 0:01:52.5]} 27... b5 {[%clk
0:02:09.9]} 28. axb6 {[%clk 0:01:52.1]} 28... Rxb6 {[%clk 0:02:09.4]} 29. Re2
{[%clk 0:01:51.4]} 29... Bg4 {[%clk 0:02:07.9]} 30. Qa4 {[%clk 0:01:43.5]} 30...
Qxe7 {[%clk 0:01:53.6]} 31. Bf3 {[%clk 0:01:41.3]} 1-0

[Event "Late-Titled-Tuesday-Blitz-January-16-2024"]
[Site "Chess.com"]
[Date "2024.01.16"]
[Round "1"]
[White "bazar-wokzal"]
[Black "dorpato"]
[Result "1-0"]
[WhiteElo "2560"]
[BlackElo "2145"]
[TimeControl "180+1"]
[EndTime "14:04:10 PST"]
[Termination "bazar-wokzal won by resignation"]

1. e4 {[%clk 0:03:00]} 1... c5 {[%clk 0:02:57.1]} 2. c3 {[%clk 0:02:59.3]} 2...
Nf6 {[%clk 0:02:50.2]} 3. e5 {[%clk 0:02:59.1]} 3... Nd5 {[%clk 0:02:45.2]} 4.
d4 {[%clk 0:02:59.4]} 4... cxd4 {[%clk 0:02:37.9]} 5. cxd4 {[%clk 0:03:00.3]}
5... Nc6 {[%clk 0:02:37.6]} 6. Nc3 {[%clk 0:03:00]} 6... Nb6 {[%clk 0:02:31.3]}
7. f4 {[%clk 0:02:57.8]} 7... d6 {[%clk 0:02:24.6]} 8. Nf3 {[%clk 0:02:57.3]}
8... g6 {[%clk 0:02:14.1]} 9. d5 {[%clk 0:02:55.2]} 9... Nb8 {[%clk 0:02:05.2]}
10. Bb5+ {[%clk 0:02:55.1]} 10... Bd7 {[%clk 0:02:03.7]} 11. e6 {[%clk
0:02:55.4]} 11... fxe6 {[%clk 0:01:51.8]} 12. dxe6 {[%clk 0:02:55.4]} 12... Bxb5
{[%clk 0:01:38.3]} 13. Nxb5 {[%clk 0:02:55.1]} 13... Bg7 {[%clk 0:01:38.4]} 14.
f5 {[%clk 0:02:54.9]} 14... gxf5 {[%clk 0:01:30.5]} 15. Ng5 {[%clk 0:02:54.9]}
15... O-O {[%clk 0:01:28.7]} 16. Qh5 {[%clk 0:02:54.1]} 16... h6 {[%clk
0:01:27.1]} 17. Nf7 {[%clk 0:02:53.7]} 17... Qe8 {[%clk 0:01:20.1]} 18. Bxh6
{[%clk 0:02:20.3]} 18... Bxh6 {[%clk 0:01:01.5]} 19. Qxh6 {[%clk 0:02:15.6]}
19... Rxf7 {[%clk 0:00:58.3]} 20. Qg6+ {[%clk 0:02:08.8]} 20... Kf8 {[%clk
0:00:49.8]} 21. Nc7 {[%clk 0:02:08.3]} 1-0

[Event "Late-Titled-Tuesday-Blitz-January-16-2024"]
[Site "Chess.com"]
[Date "2024.01.16"]
[Round "1"]
[White "mbchess97"]
[Black "IMRosen"]
[Result "1-0"]
[WhiteElo "2394"]
[BlackElo "2664"]
[TimeControl "180+1"]
[EndTime "14:04:13 PST"]
[Termination "mbchess97 won on time"]

1. c4 {[%clk 0:03:00.9]} 1... e6 {[%clk 0:02:58.6]} 2. g3 {[%clk 0:03:01]} 2...
d5 {[%clk 0:02:58.3]} 3. Bg2 {[%clk 0:03:01.4]} 3... Nf6 {[%clk 0:02:30.9]} 4.
Nf3 {[%clk 0:03:00.2]} 4... dxc4 {[%clk 0:02:27.9]} 5. Qa4+ {[%clk 0:02:59.6]}
5... c6 {[%clk 0:02:25.6]} 6. Qxc4 {[%clk 0:02:59]} 6... b5 {[%clk 0:02:26.5]}
7. Qb3 {[%clk 0:02:57.1]} 7... Bb7 {[%clk 0:02:27.4]} 8. O-O {[%clk 0:02:52.2]}
8... Nbd7 {[%clk 0:02:03.8]} 9. d4 {[%clk 0:02:51.5]} 9... a6 {[%clk 0:01:59.6]}
10. a4 {[%clk 0:02:48.1]} 10... Qb6 {[%clk 0:01:57.5]} 11. Nc3 {[%clk
0:02:20.5]} 1-0

[Event "Late-Titled-Tuesday-Blitz-January-16-2024"]
[Site "Chess.com"]
[Date "2024.01.16"]
[Round "1"]
[White "pooh2012"]
[Black "PNEPaul"]
[Result "1-0"]
[WhiteElo "2533"]
[BlackElo "1913"]
[TimeControl "180+1"]
[EndTime "14:04:16 PST"]
[Termination "pooh2012 won by resignation"]

1. d4 {[%clk 0:02:59.4]} 1... a6 {[%clk 0:02:59.5]} 2. a4 {[%clk 0:02:57.8]}
2... d6 {[%clk 0:02:59.2]} 3. Nf3 {[%clk 0:02:57.7]} 3... g6 {[%clk 0:02:59.2]}
4. h4 {[%clk 0:02:55.1]} 4... h6 {[%clk 0:02:58.9]} 5. e4 {[%clk 0:02:50.6]}
5... Bg7 {[%clk 0:02:58.7]} 6. c3 {[%clk 0:02:49.7]} 6... Nd7 {[%clk 0:02:58.7]}
7. Nbd2 {[%clk 0:02:44.6]} 7... e5 {[%clk 0:02:58.1]} 8. Bc4 {[%clk 0:02:42.3]}
8... Ne7 {[%clk 0:02:57.3]} 9. Qb3 {[%clk 0:02:37]} 9... O-O {[%clk 0:02:55.4]}
10. Nf1 {[%clk 0:02:19.4]} 10... Nb6 {[%clk 0:02:50.9]} 11. Be2 {[%clk
0:02:14.4]} 11... Be6 {[%clk 0:02:48.1]} 12. Qc2 {[%clk 0:02:03.4]} 12... exd4
{[%clk 0:02:35.7]} 13. Nxd4 {[%clk 0:01:59.3]} 13... c5 {[%clk 0:02:27.7]} 14.
Nxe6 {[%clk 0:01:46.5]} 14... fxe6 {[%clk 0:02:26.9]} 15. a5 {[%clk 0:01:46.8]}
15... Nbc8 {[%clk 0:02:22.9]} 16. Bg4 {[%clk 0:01:29.2]} 16... e5 {[%clk
0:02:12.6]} 17. Qb3+ {[%clk 0:01:23.9]} 17... Kh7 {[%clk 0:02:07.5]} 18. Qxb7
{[%clk 0:01:20.6]} 18... Qe8 {[%clk 0:01:40.8]} 19. Qxa8 {[%clk 0:00:59.5]} 1-0

[Event "Late-Titled-Tuesday-Blitz-January-16-2024"]
[Site "Chess.com"]
[Date "2024.01.16"]
[Round "1"]
[White "chessisveryfun1264"]
[Black "cristiano78"]
[Result "1-0"]
[WhiteElo "2583"]
[BlackElo "2227"]
[TimeControl "180+1"]
[EndTime "14:04:17 PST"]
[Termination "chessisveryfun1264 won by resignation"]

1. Nf3 {[%clk 0:02:28.4]} 1... Nf6 {[%clk 0:02:58.9]} 2. g3 {[%clk 0:02:28.7]}
2... g6 {[%clk 0:02:58.8]} 3. Bg2 {[%clk 0:02:26.4]} 3... Bg7 {[%clk 0:02:58.7]}
4. O-O {[%clk 0:02:27.3]} 4... O-O {[%clk 0:02:58.8]} 5. d4 {[%clk 0:02:23.9]}
5... c5 {[%clk 0:02:57.4]} 6. d5 {[%clk 0:02:19.6]} 6... d6 {[%clk 0:02:56.8]}
7. Nc3 {[%clk 0:02:13.8]} 7... Nbd7 {[%clk 0:02:52.2]} 8. e4 {[%clk 0:02:12.6]}
8... b5 {[%clk 0:02:52]} 9. e5 {[%clk 0:02:11.8]} 9... dxe5 {[%clk 0:02:49.6]}
10. Nxb5 {[%clk 0:02:11.9]} 10... e4 {[%clk 0:02:47.1]} 11. Ng5 {[%clk
0:02:10.7]} 11... Ba6 {[%clk 0:02:45]} 12. a4 {[%clk 0:02:08.9]} 12... Qb6
{[%clk 0:02:42.4]} 13. c4 {[%clk 0:02:05.1]} 13... Bxb5 {[%clk 0:02:35.7]} 14.
axb5 {[%clk 0:02:06]} 14... a6 {[%clk 0:02:33.2]} 15. bxa6 {[%clk 0:02:03.6]}
15... Rxa6 {[%clk 0:02:33.1]} 16. Rxa6 {[%clk 0:02:03.1]} 16... Qxa6 {[%clk
0:02:33.2]} 17. b3 {[%clk 0:02:04]} 17... Rb8 {[%clk 0:02:21.5]} 18. Nxe4 {[%clk
0:02:04]} 18... Qa2 {[%clk 0:02:17.9]} 19. Bf4 {[%clk 0:01:41.6]} 19... Rxb3
{[%clk 0:02:14.2]} 20. d6 {[%clk 0:01:39.6]} 20... Nxe4 {[%clk 0:02:10.3]} 21.
dxe7 {[%clk 0:01:39.7]} 21... Nef6 {[%clk 0:01:35.9]} 22. Qd6 {[%clk 0:01:36.9]}
22... Rb7 {[%clk 0:01:15.7]} 23. Bxb7 {[%clk 0:01:35.2]} 1-0

[Event "Late-Titled-Tuesday-Blitz-January-16-2024"]
[Site "Chess.com"]
[Date "2024.01.16"]
[Round "1"]
[White "Chempiblinka"]
[Black "aghasiyevkamal"]
[Result "0-1"]
[WhiteElo "2299"]
[BlackElo "2627"]
[TimeControl "180+1"]
[EndTime "14:04:18 PST"]
[Termination "aghasiyevkamal won by resignation"]

1. Nf3 {[%clk 0:03:00.9]} 1... d5 {[%clk 0:02:57.5]} 2. g3 {[%clk 0:03:01.8]}
2... Nf6 {[%clk 0:02:57.2]} 3. Bg2 {[%clk 0:03:02.7]} 3... e6 {[%clk 0:02:57.5]}
4. c4 {[%clk 0:03:02.9]} 4... dxc4 {[%clk 0:02:53]} 5. Na3 {[%clk 0:02:59.1]}
5... Bxa3 {[%clk 0:02:50.4]} 6. bxa3 {[%clk 0:03:00]} 6... O-O {[%clk
0:02:48.5]} 7. a4 {[%clk 0:02:59.5]} 7... Nc6 {[%clk 0:02:41.2]} 8. Ba3 {[%clk
0:02:59.7]} 8... Re8 {[%clk 0:02:41.6]} 9. O-O {[%clk 0:02:58.7]} 9... e5 {[%clk
0:02:42]} 10. Qc2 {[%clk 0:02:50.8]} 10... Be6 {[%clk 0:02:39.8]} 11. Ng5 {[%clk
0:02:48.9]} 11... Nd4 {[%clk 0:02:35.5]} 12. Qd1 {[%clk 0:02:49.4]} 12... Bd5
{[%clk 0:02:34.6]} 13. e4 {[%clk 0:02:16.6]} 13... Bc6 {[%clk 0:02:33.6]} 14.
Re1 {[%clk 0:02:15.4]} 14... h6 {[%clk 0:02:24.9]} 15. Nf3 {[%clk 0:02:06.4]}
15... Bxe4 {[%clk 0:02:24.2]} 16. Nxd4 {[%clk 0:01:24.9]} 16... exd4 {[%clk
0:02:22.7]} 17. Bxe4 {[%clk 0:01:21.7]} 17... Nxe4 {[%clk 0:02:19.7]} 18. Rc1
{[%clk 0:01:19.5]} 18... Qd5 {[%clk 0:02:18.9]} 19. Qg4 {[%clk 0:01:00.3]} 19...
Nxd2 {[%clk 0:02:11.3]} 20. Rxe8+ {[%clk 0:00:52.7]} 20... Rxe8 {[%clk
0:02:11.1]} 21. h4 {[%clk 0:00:47.2]} 21... Nf3+ {[%clk 0:02:08.4]} 0-1

[Event "Late-Titled-Tuesday-Blitz-January-16-2024"]
[Site "Chess.com"]
[Date "2024.01.16"]
[Round "1"]
[White "Ticondriul"]
[Black "Magila31"]
[Result "1-0"]
[WhiteElo "2728"]
[BlackElo "2405"]
[TimeControl "180+1"]
[EndTime "14:04:29 PST"]
[Termination "Ticondriul won by resignation"]

1. d4 {[%clk 0:02:56.1]} 1... Nf6 {[%clk 0:02:58.9]} 2. Nf3 {[%clk 0:02:54.8]}
2... g6 {[%clk 0:02:58.2]} 3. e3 {[%clk 0:02:54.8]} 3... Bg7 {[%clk 0:02:57.7]}
4. Be2 {[%clk 0:02:50.9]} 4... O-O {[%clk 0:02:56.7]} 5. O-O {[%clk 0:02:50.1]}
5... d6 {[%clk 0:02:55.2]} 6. b3 {[%clk 0:02:48.8]} 6... c5 {[%clk 0:02:53.2]}
7. Bb2 {[%clk 0:02:48.6]} 7... b6 {[%clk 0:02:48.5]} 8. c4 {[%clk 0:02:45]} 8...
Bb7 {[%clk 0:02:47.7]} 9. d5 {[%clk 0:02:33.9]} 9... Nbd7 {[%clk 0:02:44.9]} 10.
Nc3 {[%clk 0:02:33.5]} 10... a6 {[%clk 0:02:43.3]} 11. a4 {[%clk 0:02:31.2]}
11... Rb8 {[%clk 0:02:28.7]} 12. Nd2 {[%clk 0:02:20.5]} 12... Ne8 {[%clk
0:02:23.6]} 13. f4 {[%clk 0:02:14.6]} 13... Nc7 {[%clk 0:02:22.3]} 14. Qc2
{[%clk 0:01:54.5]} 14... b5 {[%clk 0:02:10]} 15. axb5 {[%clk 0:01:39.2]} 15...
axb5 {[%clk 0:02:09.5]} 16. e4 {[%clk 0:01:39.5]} 16... bxc4 {[%clk 0:02:01.4]}
17. Nxc4 {[%clk 0:01:21.3]} 17... Na6 {[%clk 0:01:56.7]} 18. e5 {[%clk
0:01:14.3]} 18... Nb4 {[%clk 0:01:54.2]} 19. Qd2 {[%clk 0:01:14.3]} 19... dxe5
{[%clk 0:01:52.7]} 20. f5 {[%clk 0:01:14.7]} 20... Nf6 {[%clk 0:01:43.4]} 21. d6
{[%clk 0:01:04.2]} 21... exd6 {[%clk 0:01:40.4]} 22. Nxd6 {[%clk 0:01:03.8]} 1-0

[Event "Late-Titled-Tuesday-Blitz-January-16-2024"]
[Site "Chess.com"]
[Date "2024.01.16"]
[Round "1"]
[White "SergioMoralesG"]
[Black "Sargsyan_Shant"]
[Result "0-1"]
[WhiteElo "2469"]
[BlackElo "2871"]
[TimeControl "180+1"]
[EndTime "14:04:49 PST"]
[Termination "Sargsyan_Shant won by resignation"]

1. d4 {[%clk 0:02:34.7]} 1... g6 {[%clk 0:02:59.8]} 2. c4 {[%clk 0:02:34.3]}
2... Bg7 {[%clk 0:02:59.7]} 3. Nf3 {[%clk 0:02:35]} 3... d6 {[%clk 0:02:58.7]}
4. Nc3 {[%clk 0:02:35.3]} 4... Nf6 {[%clk 0:02:57.9]} 5. e4 {[%clk 0:02:35.4]}
5... O-O {[%clk 0:02:57.7]} 6. Be2 {[%clk 0:02:36]} 6... Na6 {[%clk 0:02:57.1]}
7. O-O {[%clk 0:02:35.3]} 7... e5 {[%clk 0:02:57.3]} 8. Be3 {[%clk 0:02:35.9]}
8... Ng4 {[%clk 0:02:50.8]} 9. Bg5 {[%clk 0:02:35.7]} 9... f6 {[%clk 0:02:51.1]}
10. Bh4 {[%clk 0:02:36.3]} 10... h5 {[%clk 0:02:46.4]} 11. Rb1 {[%clk
0:02:32.3]} 11... g5 {[%clk 0:02:33.2]} 12. Bg3 {[%clk 0:02:32.2]} 12... h4
{[%clk 0:02:27.3]} 13. Nxh4 {[%clk 0:02:32.1]} 13... gxh4 {[%clk 0:02:25.9]} 14.
Bxg4 {[%clk 0:02:26.9]} 14... hxg3 {[%clk 0:02:25.7]} 15. fxg3 {[%clk
0:02:26.2]} 15... f5 {[%clk 0:02:06.9]} 16. exf5 {[%clk 0:02:16.8]} 16... exd4
{[%clk 0:02:06]} 17. Ne4 {[%clk 0:02:17.2]} 17... Nc5 {[%clk 0:02:01.9]} 18. Nf2
{[%clk 0:02:14.1]} 18... Bxf5 {[%clk 0:01:55.6]} 19. Bxf5 {[%clk 0:02:13.7]}
19... Rxf5 {[%clk 0:01:56.5]} 20. b4 {[%clk 0:02:14]} 20... Nd7 {[%clk
0:01:54.1]} 21. Qg4 {[%clk 0:02:13.9]} 21... Rf7 {[%clk 0:01:50.3]} 22. Ne4
{[%clk 0:02:13.8]} 22... Ne5 {[%clk 0:01:47]} 23. Qh5 {[%clk 0:02:04.2]} 23...
Qe8 {[%clk 0:01:44.7]} 24. Qh3 {[%clk 0:01:52.1]} 24... Qd7 {[%clk 0:01:41.1]}
25. Rxf7 {[%clk 0:01:45.1]} 25... Qxf7 {[%clk 0:01:37.3]} 26. Rf1 {[%clk
0:01:37.8]} 26... Qg6 {[%clk 0:01:37.8]} 27. Rf5 {[%clk 0:01:31.4]} 27... Rf8
{[%clk 0:01:32.5]} 28. Rxf8+ {[%clk 0:01:18.3]} 28... Bxf8 {[%clk 0:01:33.4]}
29. Qh4 {[%clk 0:01:15.9]} 29... Kg7 {[%clk 0:01:19.5]} 0-1